bitfinex/quotes_ETHUSD_20250706
["timestamp","ask_amount","ask_price","bid_price","bid_amount"]
[1751838705845,14.22430314,2587.6,2587.5,0.0811359]
[1751838706354,10.3597182,2587.6,2587.5,0.0811359]
[1751838706651,0.35963325,2587.6,2587.5,0.0811359]
[1751838707037,0.35963325,2587.7,2587.5,0.0811359]
[1751838707352,0.35963325,2587.6,2587.5,0.0811359]
[1751838707520,0.35963325,2587.7,2587.5,0.0811359]
[1751838707723,0.35963325,2587.6,2587.5,0.0811359]
[1751838708159,0.38841421,2587.8,2587.5,0.0811359]
[1751838708459,0.35963325,2587.7,2587.5,0.0811359]
[1751838708619,0.35963325,2587.6,2587.5,0.0811359]
[1751838708825,0.35963325,2587.7,2587.5,0.0811359]
[1751838709024,0.35963325,2587.6,2587.5,0.0811359]
[1751838709251,0.35963325,2587.7,2587.5,0.0811359]
[1751838709932,6.0,2587.6,2587.5,0.0811359]
[1751838711053,6.0,2587.6,2587.5,0.4716359]
[1751838711254,6.0,2587.6,2587.5,4.33637019]
[1751838711427,6.0,2587.6,2587.5,4.52917019]
[1751838711630,6.0,2587.6,2587.5,4.56781753]
[1751838712566,5.50640099,2589.0,2588.4,3.86329615]
[1751838712767,5.50640099,2589.0,2588.2,3.86363548]
[1751838712768,0.38836803,2588.7,2588.3,3.86353977]
[1751838712975,0.35955653,2588.6,2588.5,0.1928]
[1751838713176,0.38833749,2588.7,2588.5,0.1928]
[1751838713368,0.35955653,2588.6,2588.5,0.1928]
[1751838714140,0.02878096,2588.8,2588.5,0.1928]
[1751838714346,0.38840769,2588.8,2588.5,0.1928]
[1751838715077,0.02878096,2588.8,2588.4,3.86329047]
[1751838715255,3.89143156,2588.9,2588.6,0.1928]
[1751838717466,3.89143156,2588.9,2588.1,0.3905]
[1751838717467,3.86309201,2588.6,2587.8,0.3905]
[1751838717647,3.86353977,2588.3,2588.2,0.1928]
[1751838717849,3.89232073,2588.3,2588.2,0.1928]
[1751838718072,13.89232073,2588.3,2588.2,0.1928]
[1751838718280,13.86353977,2588.3,2588.2,0.1928]
[1751838719277,10.0,2588.3,2587.5,4.33622773]
[1751838719580,3.8639255,2588.1,2588.0,0.1928]
[1751838721173,3.86398763,2588.0,2587.6,0.1928]
[1751838721372,3.892963,2587.9,2587.6,0.1928]
[1751838721573,3.86428626,2587.8,2587.6,0.1928]
[1751838722577,3.86438324,2587.8,2587.6,0.1928]
[1751838723166,3.89299465,2587.9,2587.6,0.1928]
[1751838723847,1.6543,2588.3,2587.8,3.86418831]
[1751838724048,0.02878096,2588.2,2587.8,0.1928]
[1751838724288,3.86375998,2588.2,2588.0,0.1928]
[1751838724582,0.02878096,2588.1,2588.0,0.1928]
[1751838725158,0.02878096,2588.2,2588.0,0.1928]
[1751838726067,0.02878096,2588.3,2588.0,0.1928]
[1751838726489,3.89235776,2588.3,2588.0,0.1928]
[1751838726786,0.02878096,2588.3,2588.0,0.1928]
[1751838726989,0.02878096,2588.3,2588.0,0.5833]
[1751838727289,0.002,2588.1,2588.0,0.5833]
[1751838727989,0.002,2588.1,2588.0,4.44728763]
[1751838728290,0.002,2588.1,2588.0,0.5833]
[1751838728659,0.002,2588.1,2588.0,4.44728763]
[1751838730490,0.002,2588.1,2588.0,4.4859275]
[1751838731787,0.002,2588.1,2588.0,14.4859275]
[1751838731992,0.002,2588.1,2588.0,14.44728763]
[1751838732165,0.002,2588.1,2588.0,23.43928763]
[1751838733998,0.02878096,2589.0,2588.9,3.86264436]
[1751838734196,0.002,2589.2,2588.7,0.3905]
[1751838734197,0.002,2589.2,2588.7,4.29204905]
[1751838734374,0.002,2589.2,2588.7,0.3905]
[1751838734583,0.002,2589.2,2589.0,3.86238272]
[1751838735105,0.002,2589.2,2589.1,3.86234598]
[1751838737172,0.002,2589.2,2589.1,4.25284598]
[1751838738310,0.002,2589.2,2589.1,4.29146943]
[1751838738670,0.002,2589.2,2589.1,3.90096943]
[1751838738872,0.002,2589.2,2588.3,10.3905]
[1751838738873,3.86428302,2589.2,2588.3,10.3905]
[1751838739130,3.86428302,2589.2,2587.7,3.34888329]
[1751838739131,1.5381,2589.0,2588.0,3.86386859]
[1751838739407,3.86327826,2588.5,2587.9,3.86407473]
[1751838739591,5.43029451,2588.4,2587.8,3.86423869]
[1751838739773,5.43029451,2588.4,2587.8,10.0]
[1751838739976,5.43029451,2588.4,2587.7,3.86442922]
[1751838740306,0.55,2588.3,2587.5,0.0821359]
[1751838740472,3.86443167,2587.8,2587.5,0.0821359]
[1751838740677,0.02878096,2587.7,2587.5,0.0821359]
[1751838741101,3.86458494,2587.6,2587.5,0.0821359]
[1751838741284,5.5414659,2587.6,2587.5,0.0821359]
[1751838741485,5.51268494,2587.6,2587.5,0.0821359]
[1751838741688,17.00039813,2587.6,2587.5,0.0821359]
[1751838742016,17.00039813,2587.6,2587.5,1e-08]
[1751838742176,17.00039813,2587.6,2587.1,0.12896377]
[1751838742177,5.95568243,2587.2,2587.1,0.12896377]
[1751838742378,27.41846339,2587.2,2587.1,0.12896377]
[1751838742579,27.38968243,2587.2,2587.1,0.12896377]
[1751838742820,31.40685481,2587.2,2587.1,0.12896377]
[1751838743312,31.23857491,2587.2,2587.1,0.12896377]
[1751838745619,28.77357491,2587.2,2587.1,0.12896377]
[1751838746614,18.26407491,2587.2,2587.1,0.12896377]
[1751838746816,14.41518243,2587.2,2587.1,0.12896377]
[1751838747014,13.86518243,2587.2,2587.1,0.12896377]
[1751838747419,14.41518243,2587.2,2587.1,0.12896377]
[1751838747617,16.03908243,2587.2,2587.1,0.12896377]
[1751838749322,25.00408243,2587.2,2587.1,0.12896377]
[1751838749620,28.1370946,2587.2,2587.1,0.12896377]
[1751838750641,10.0,2587.2,2587.1,0.12896377]
[1751838750846,10.1928,2587.2,2587.1,0.12896377]
[1751838752793,0.1928,2587.2,2587.1,0.12896377]
[1751838752950,3.86421883,2587.9,2587.3,3.86494839]
[1751838753281,15.53291644,2587.8,2587.3,3.86494839]
[1751838753582,10.0,2587.6,2587.2,3.86518067]
[1751838753810,3.8640269,2588.0,2587.5,3.86473365]
[1751838753941,0.02878096,2587.9,2587.6,3.8644891]
[1751838754147,0.02878096,2588.0,2587.6,3.8644891]
[1751838754453,2.73401448,2588.0,2587.1,0.51946377]
[1751838754653,2.73401448,2588.0,2587.1,4.38472058]
[1751838754654,3.86452403,2587.7,2587.1,4.38472058]
[1751838754859,3.89337768,2587.6,2587.1,4.38472058]
[1751838755059,3.89337768,2587.6,2587.1,0.12896377]
[1751838755060,5.45147768,2587.6,2587.1,0.12896377]
[1751838755261,3.86475832,2587.5,2587.1,0.12896377]
[1751838755457,0.02878096,2587.4,2587.1,0.12896377]
[1751838755793,0.02878096,2587.5,2587.1,0.12896377]
[1751838756002,1.6226,2587.4,2587.1,0.12896377]
[1751838756156,3.86518243,2587.2,2587.1,0.12896377]
[1751838757569,13.86518243,2587.2,2587.1,0.12896377]
[1751838758776,24.96878243,2587.2,2587.1,0.12896377]
[1751838759991,24.41878243,2587.2,2587.1,0.12896377]
[1751838760191,27.24716398,2587.2,2587.1,0.12896377]
[1751838764270,16.69356398,2587.2,2587.1,0.12896377]
[1751838766424,6.69356398,2587.2,2587.1,0.12896377]
[1751838766596,6.72234494,2587.2,2587.1,0.12896377]
[1751838766997,12.83096339,2587.2,2587.1,0.12896377]
[1751838767214,12.80218243,2587.2,2587.1,0.12896377]
[1751838769314,12.97081541,2587.2,2587.1,0.12896377]
[1751838769813,12.97081568,2587.2,2587.1,0.12896377]
[1751838771387,13.85740884,2587.2,2587.1,0.12896377]
[1751838771592,15.87325303,2587.2,2587.1,0.12896377]
[1751838772211,27.45825303,2587.2,2587.1,0.12896377]
[1751838773813,27.45826448,2587.2,2587.1,0.12896377]
[1751838776226,27.45026448,2587.2,2587.1,0.12896377]
[1751838777038,27.4535354,2587.2,2587.1,0.12896377]
[1751838777330,27.0963354,2587.2,2587.1,0.12896377]
[1751838777510,27.09633273,2587.2,2587.1,0.12896377]
[1751838777710,0.002,2587.5,2587.4,3.86488366]
[1751838778020,0.002,2587.5,2587.4,3.90609069]
[1751838778205,0.002,2587.5,2587.4,4.09889069]
[1751838779004,0.002,2587.5,2587.4,4.06024186]
[1751838781034,0.002,2587.5,2587.4,4.48939069]
[1751838781733,0.002,2587.5,2587.4,0.1953582]
[1751838781925,4.06419312,2587.5,2587.4,0.0025582]
[1751838782122,16.18679312,2587.5,2587.4,0.0025582]
[1751838782323,16.49650377,2587.5,2587.4,0.0025582]
[1751838782525,19.66481452,2587.5,2587.4,0.0025582]
[1751838785312,19.49630184,2587.5,2587.4,0.0025582]
[1751838785518,28.5700448,2587.5,2587.4,0.0025582]
[1751838786038,19.66511555,2587.5,2587.4,0.0025582]
[1751838786239,30.98111555,2587.5,2587.4,0.0025582]
[1751838788338,19.66511555,2587.5,2587.4,0.0025582]
[1751838788538,30.97711555,2587.5,2587.4,0.0025582]
[1751838790836,30.42411555,2587.5,2587.4,0.0025582]
[1751838791216,19.66511555,2587.5,2587.4,0.0025582]
[1751838791418,30.97211555,2587.5,2587.4,0.0025582]
[1751838792118,19.66511555,2587.5,2587.4,0.0025582]
[1751838792344,30.97111555,2587.5,2587.4,0.0025582]
[1751838793252,30.97111555,2587.5,2587.4,0.0035582]
[1751838794120,30.9819399,2587.5,2587.4,0.0035582]
[1751838794322,27.26062915,2587.5,2587.4,0.0035582]
[1751838794541,10.520272,2587.5,2587.4,0.0035582]
[1751838794741,10.36360216,2587.5,2587.4,0.0035582]
[1751838795355,19.06180216,2587.5,2587.4,0.0035582]
[1751838795849,10.17080216,2587.5,2587.4,0.0035582]
[1751838796153,8.891,2587.5,2587.4,0.1963582]
[1751838796718,9.05979166,2587.5,2587.4,0.1963582]
[1751838796922,0.002,2587.5,2587.4,0.1963582]
[1751838797144,0.002,2587.5,2587.4,0.0035582]
[1751838797145,4.25710661,2587.5,2587.4,0.0035582]
[1751838797353,14.25710661,2587.5,2587.4,0.0035582]
[1751838797539,16.18015769,2587.5,2587.4,0.0035582]
[1751838797970,10.7111234,2587.5,2587.4,0.0035582]
[1751838798264,25.61514936,2587.5,2587.4,0.0035582]
[1751838798562,28.56313217,2587.5,2587.4,0.0035582]
[1751838800044,0.36359136,2587.5,2587.4,0.0035582]
[1751838800254,0.17079136,2587.5,2587.4,0.0035582]
[1751838800453,0.002,2587.5,2587.4,0.0035582]
[1751838801566,3.86673429,2587.5,2587.4,0.0035582]
[1751838801981,4.03550555,2587.5,2587.4,0.0035582]
[1751838802270,4.03550692,2587.5,2587.4,0.0035582]
[1751838802436,12.94428788,2587.5,2587.4,0.0035582]
[1751838802634,13.43049705,2587.5,2587.4,0.0035582]
[1751838802958,23.43049705,2587.5,2587.4,0.0035582]
[1751838803160,23.77663731,2587.5,2587.4,0.0035582]
[1751838803371,23.77664652,2587.5,2587.4,0.0035582]
[1751838803682,23.26172442,2587.5,2587.4,0.0035582]
[1751838803861,23.77665695,2587.5,2587.4,0.0035582]
[1751838804252,23.7766779,2587.5,2587.4,0.0035582]
[1751838806576,24.3266779,2587.5,2587.4,0.0035582]
[1751838807278,15.89488777,2587.5,2587.4,0.0035582]
[1751838807477,23.25568777,2587.5,2587.4,0.0035582]
[1751838808370,23.25368777,2587.5,2587.4,0.0035582]
[1751838809080,23.25268777,2587.5,2587.4,0.0035582]
[1751838811581,23.80268777,2587.5,2587.4,0.0035582]
[1751838811987,26.81051595,2587.5,2587.4,0.0035582]
[1751838812859,13.86673429,2587.5,2587.4,0.0035582]
[1751838813084,23.7991639,2587.5,2587.4,0.0035582]
[1751838815280,23.7991639,2587.5,2587.4,0.001]
[1751838815482,23.7991639,2587.5,2587.4,0.0546151]
[1751838815996,23.2491639,2587.5,2587.4,0.0546151]
[1751838816162,23.24919266,2587.5,2587.4,0.0546151]
[1751838816362,4.38319266,2587.5,2587.4,0.0546151]
[1751838816587,0.51845837,2587.5,2587.4,0.0546151]
[1751838816769,0.54723933,2587.5,2587.4,0.0546151]
[1751838816967,0.51845837,2587.5,2587.4,3.91949876]
[1751838817179,0.17108895,2587.5,2587.4,4.30999876]
[1751838817391,0.17108895,2587.5,2587.4,4.34864759]
[1751838817683,0.002,2587.5,2587.4,4.34864759]
[1751838818696,0.002,2587.5,2587.4,14.34864759]
[1751838818856,0.002,2588.1,2588.0,4.25448763]
[1751838819190,0.002,2588.1,2588.0,4.2931275]
[1751838819396,0.002,2588.1,2588.0,4.3012687]
[1751838819699,0.002,2588.1,2588.0,14.3012687]
[1751838819861,0.002,2588.1,2588.0,14.26262883]
[1751838821289,0.002,2588.1,2588.0,14.45542883]
[1751838822280,1e-08,2588.1,2588.0,15.00542883]
[1751838823555,0.002,2588.6,2588.5,3.86324125]
[1751838823781,0.002,2588.6,2588.5,13.86324125]
[1751838823981,0.002,2588.6,2588.5,14.05604125]
[1751838824688,0.002,2588.6,2588.5,14.44654125]
[1751838825189,0.002,2588.6,2588.5,14.80374125]
[1751838825396,1e-08,2588.6,2588.5,14.80374125]
[1751838830671,1e-08,2588.6,2588.5,19.49374125]
[1751838834983,1e-08,2588.6,2588.5,28.51254125]
[1751838835381,1e-08,2589.2,2589.1,3.86234598]
[1751838835602,1e-08,2589.2,2589.1,25.11396943]
[1751838835777,1e-08,2589.2,2589.1,25.26814598]
[1751838835973,1e-08,2589.2,2589.1,25.81814598]
[1751838836502,1e-08,2589.2,2589.1,26.20864598]
[1751838836880,1e-08,2589.2,2589.1,30.89864598]
[1751838837282,0.0454739,2590.2,2590.1,3.86085479]
[1751838837484,0.0454739,2590.2,2590.1,3.89946333]
[1751838837686,0.0454739,2590.2,2590.1,4.09226333]
[1751838838279,0.0454739,2590.2,2590.1,3.89946333]
[1751838839199,0.0454739,2590.2,2590.1,13.89946333]
[1751838839372,0.0454739,2590.2,2590.1,13.86085479]
[1751838840303,0.0454739,2590.2,2590.1,3.86085479]
[1751838840504,0.0454739,2590.2,2590.1,12.67685479]
[1751838840676,1.6876739,2590.2,2589.8,3.86122911]
[1751838840876,1.6876739,2590.2,2589.4,3.86181037]
[1751838840877,1.6422,2590.0,2589.4,3.86181037]
[1751838841082,3.8900093,2589.9,2589.3,8.814]
[1751838841282,4.82931688,2589.9,2589.3,8.814]
[1751838841498,0.96808854,2589.9,2589.4,3.86183078]
[1751838842076,0.02878096,2589.9,2589.5,3.86171006]
[1751838842480,0.02878096,2589.9,2589.5,3.86173058]
[1751838842804,1.6422,2590.0,2589.6,3.86151199]
[1751838843105,1.67098096,2590.0,2589.4,0.03861898]
[1751838843304,1.67098096,2590.0,2589.3,8.814]
[1751838843305,1.6422,2590.0,2589.8,3.86129538]
[1751838843685,1.6422,2590.0,2589.9,3.86115294]
[1751838844504,0.07425486,2590.2,2590.0,3.86098747]
[1751838844505,0.0454739,2590.2,2590.0,3.86098747]
[1751838844707,0.0454739,2590.2,2590.1,3.86085479]
[1751838846899,0.0454739,2590.2,2590.1,14.25135479]
[1751838848511,0.002,2590.3,2590.1,14.25135479]
[1751838848512,0.002,2590.3,2590.2,13.86070573]
[1751838848711,0.002,2590.3,2590.2,22.66270573]
[1751838848884,1e-08,2590.3,2590.2,22.66270573]
[1751838849086,1e-08,2590.3,2590.2,25.96820573]
[1751838851130,0.0454739,2590.7,2590.6,13.86010962]
[1751838851444,0.002,2591.6,2591.2,3.8592158]
[1751838851631,0.002,2591.6,2591.2,12.6552158]
[1751838852094,0.002,2591.6,2591.2,23.0457158]
[1751838852712,0.002,2591.6,2591.2,22.6552158]
[1751838852940,0.002,2591.6,2591.2,22.6522158]
[1751838853700,0.002,2591.6,2591.2,3.8592158]
[1751838853701,1.574,2591.4,2591.2,3.8592158]
[1751838854101,1.574,2591.4,2591.1,3.8592988]
[1751838854399,1.574,2591.4,2591.0,8.79]
[1751838854798,0.07425486,2591.3,2590.3,0.3905]
[1751838855038,3.85923749,2591.2,2590.7,3.85994974]
[1751838855209,3.85923749,2591.2,2590.7,12.64894974]
[1751838856013,3.85923749,2591.2,2590.7,12.64694974]
[1751838857342,3.93335865,2591.3,2590.8,3.85981072]
[1751838857650,0.07425486,2591.3,2590.9,8.786]
[1751838857851,0.0454739,2591.3,2591.0,3.89810883]
[1751838858011,0.0454739,2591.3,2591.2,3.8592158]
[1751838859120,0.0454739,2591.3,2591.2,0.1928]
[1751838860512,0.0454739,2591.3,2591.2,4.0520158]
[1751838860730,0.0454739,2591.3,2591.2,0.1928]
[1751838861046,5.56664077,2591.3,2590.8,3.85968632]
[1751838861254,6.54092124,2591.3,2591.1,0.1928]
[1751838865375,3.86011629,2590.6,2590.3,0.1928]
[1751838865557,1.8398,2590.8,2590.3,0.1928]
[1751838865759,0.02878096,2590.7,2590.3,4.05327393]
[1751838865979,1.647,2590.8,2590.5,3.8601121]
[1751838866182,1.647,2590.8,2590.6,0.23140109]
[1751838866385,1.647,2590.8,2590.6,4.05282431]
[1751838866885,1.647,2590.8,2590.6,4.09145327]
[1751838867056,1.647,2590.8,2590.7,3.85996062]
[1751838867257,1.647,2590.8,2590.6,0.1928]
[1751838869796,5.50683063,2590.8,2590.6,0.1928]
[1751838869963,0.02878096,2590.7,2590.6,0.1928]
[1751838870282,0.02878096,2590.7,2590.2,12.625596]
[1751838870465,0.19718179,2590.7,2590.4,0.1928]
[1751838870857,4.05715566,2590.7,2590.4,0.1928]
[1751838871088,0.02878096,2590.7,2590.4,0.1928]
[1751838871264,0.19718102,2590.7,2590.4,0.1928]
[1751838872197,3.88874257,2590.7,2590.4,0.1928]
[1751838872489,0.02878096,2590.7,2590.4,0.1928]
[1751838872671,4.05736182,2590.7,2590.4,0.1928]
[1751838873015,5.47845863,2590.5,2590.0,3.8609885]
[1751838873162,5.47845863,2590.5,2590.2,0.1928]
[1751838873163,3.88921706,2590.4,2590.2,0.1928]
[1751838873362,0.02878096,2590.4,2590.2,0.1928]
[1751838873784,3.86056632,2590.3,2589.7,10.0]
[1751838873995,1.6422,2590.1,2590.0,0.1928]
[1751838874591,5.50312747,2590.1,2589.5,11.099]
[1751838874794,0.02878096,2590.0,2589.8,0.1928]
[1751838876491,3.88981714,2590.0,2589.8,0.1928]
[1751838876864,0.02878096,2590.0,2589.8,0.1928]
[1751838877485,1.8104,2589.9,2589.5,0.1938]
[1751838877671,3.86158262,2589.7,2589.5,0.001]
[1751838877870,0.02878096,2589.6,2589.5,0.001]
[1751838878991,0.02878096,2589.7,2589.5,0.001]
[1751838879496,3.89024901,2589.7,2589.5,0.001]
[1751838879703,0.02878096,2589.7,2589.5,0.001]
[1751838880002,3.89024643,2589.7,2589.5,0.001]
[1751838881600,3.89025046,2589.7,2589.5,0.001]
[1751838881906,0.02878096,2589.7,2589.5,0.001]
[1751838882095,4.84643089,2589.7,2589.5,0.001]
[1751838882504,4.84644625,2589.7,2589.5,0.001]
[1751838882807,0.98495797,2589.7,2589.5,0.001]
[1751838883105,4.84643802,2589.7,2589.5,0.001]
[1751838887518,0.98495797,2589.7,2589.5,0.001]
[1751838887724,16.49251408,2589.6,2589.5,0.001]
[1751838887922,15.63154937,2589.5,2589.4,0.0226761]
[1751838888224,27.26154937,2589.5,2589.4,0.0226761]
[1751838889131,27.26154937,2589.5,2588.8,0.0444811]
[1751838889132,5.42184436,2588.9,2588.8,0.0444811]
[1751838889296,5.45062532,2588.9,2588.8,0.0444811]
[1751838889627,3.4121752,2588.9,2588.8,0.0444811]
[1751838890408,0.02878096,2588.9,2588.8,0.0444811]
[1751838890707,0.1928,2589.1,2588.8,3.90727467]
[1751838892932,3.0,2588.9,2588.8,3.90727467]
[1751838894037,3.0,2588.9,2588.8,0.0444811]
[1751838897738,3.0,2588.9,2588.8,3.90727467]
[1751838898241,0.02878096,2589.5,2589.2,3.8620922]
[1751838898620,0.02878096,2589.6,2589.4,3.86187955]
[1751838898939,1.65878096,2589.7,2589.4,3.86187955]
[1751838899139,1.6455811,2591.0,2589.7,0.4142]
[1751838899347,3.85991402,2590.8,2590.1,3.86085005]
[1751838899636,0.95696191,2590.7,2590.3,3.86055654]
[1751838899840,0.02878096,2590.6,2590.2,3.86065253]
[1751838900648,3.88899056,2590.6,2589.8,3.86130203]
[1751838900851,3.88899056,2590.6,2589.8,3.86118321]
[1751838900852,3.86052531,2590.4,2589.8,3.86118321]
[1751838901022,3.86081863,2590.2,2589.7,0.4142]
[1751838901358,0.02878096,2590.3,2589.6,3.86151563]
[1751838901359,3.88970325,2590.1,2589.6,3.86151563]
[1751838902272,3.88970325,2590.1,2589.6,3.8615701]
[1751838902639,0.02878096,2590.1,2589.5,3.86167852]
[1751838902837,0.41773293,2590.1,2589.5,3.86167852]
[1751838903036,0.41773293,2590.1,2589.6,3.86147902]
[1751838903232,0.02878096,2590.1,2589.7,3.86132106]
[1751838903432,3.0,2589.9,2589.8,4.31411505]
[1751838904326,0.03078096,2590.6,2590.4,3.86038774]
[1751838904530,0.002,2590.6,2590.3,3.86044111]
[1751838905527,0.002,2590.6,2590.3,3.86055459]
[1751838905760,0.002,2590.6,2590.2,3.86056631]
[1751838907586,0.002,2590.6,2590.4,0.1928]
[1751838908463,3.0,2590.5,2590.4,0.1928]
[1751838908759,0.3030781,2590.5,2590.4,0.1928]
[1751838908961,4.19218657,2590.5,2589.9,3.86103242]
[1751838909162,3.86042481,2590.4,2590.2,0.1928]
[1751838909555,4.19212578,2590.5,2590.2,0.1928]
[1751838909765,0.41941258,2590.4,2590.2,0.1928]
[1751838910268,4.27982368,2590.4,2590.2,0.1928]
[1751838910630,0.02878096,2590.3,2590.2,0.1928]
[1751838911334,0.02878096,2590.3,2589.8,0.4142]
[1751838911666,3.86073589,2590.2,2589.9,0.1928]
[1751838911866,0.02878096,2590.1,2589.9,0.1928]
[1751838912368,1.66638096,2590.1,2589.9,0.1928]
[1751838912837,1.66638096,2590.1,2589.5,3.86267751]
[1751838912838,3.86100386,2590.0,2589.5,3.86267751]
[1751838913163,3.88995552,2589.9,2589.6,0.1928]
[1751838913356,6.88995552,2589.9,2589.6,0.1928]
[1751838913552,3.88995552,2589.9,2589.6,0.1928]
[1751838914161,0.98690439,2589.9,2589.5,0.001]
[1751838914368,4.05432658,2589.7,2589.5,0.001]
[1751838914666,0.02878096,2589.6,2589.5,0.001]
[1751838914967,3.8903812,2589.6,2589.5,0.001]
[1751838915343,5.4628812,2589.6,2589.5,0.001]
[1751838918332,8.4628812,2589.6,2589.5,0.001]
[1751838918541,7.7676339,2589.6,2589.5,0.001]
[1751838918741,7.79641486,2589.6,2589.5,0.001]
[1751838919136,18.34641486,2589.6,2589.5,0.001]
[1751838919332,18.3176339,2589.6,2589.5,0.001]
[1751838919757,18.48585145,2589.6,2589.5,0.001]
[1751838922340,18.3176339,2589.6,2589.5,0.001]
[1751838922541,18.48585464,2589.6,2589.5,0.001]
[1751838923378,21.48585464,2589.6,2589.5,0.001]
[1751838923750,6.07024436,2588.9,2588.8,0.0444811]
[1751838923951,14.77802532,2588.9,2588.8,0.0444811]
[1751838924259,14.74924436,2588.9,2588.8,0.0444811]
[1751838924958,6.07024436,2588.9,2588.8,0.0444811]
[1751838925155,14.77802532,2588.9,2588.8,0.0444811]
[1751838925356,16.8451988,2588.9,2588.8,0.0444811]
[1751838926353,7.6161988,2588.9,2588.8,0.0444811]
[1751838926553,12.76222532,2588.9,2588.8,0.0444811]
[1751838926764,12.73344436,2588.9,2588.8,0.0444811]
[1751838928392,4.05544436,2588.9,2588.8,0.0444811]
[1751838928598,0.1928,2588.9,2588.8,0.0444811]
[1751838928882,0.02878096,2589.4,2589.1,3.86231854]
[1751838929065,2.319,2589.7,2589.4,3.86180945]
[1751838929392,2.319,2589.7,2589.4,0.4142]
[1751838929393,11.1838,2589.7,2589.4,0.4142]
[1751838930252,0.02878096,2589.6,2589.4,0.4142]
[1751838933067,0.02878096,2589.6,2589.3,0.1928]
[1751838934978,0.02878096,2589.6,2589.3,4.05481779]
[1751838935156,0.02878096,2589.6,2589.3,0.1928]
[1751838935368,1.5358846,2589.6,2589.3,0.1928]
[1751838935565,8.661,2589.5,2589.3,0.1928]
[1751838935775,0.02878096,2589.4,2589.3,0.1928]
[1751838938597,3.86160288,2589.6,2589.3,0.1928]
[1751838938598,0.02878096,2589.5,2589.3,0.1928]
[1751838948206,8.66678096,2589.6,2589.3,0.1928]
[1751838948381,0.02878096,2589.5,2589.3,0.1928]
[1751838948712,0.02878096,2589.5,2589.3,0.1938]
[1751838948910,8.66678096,2589.6,2589.3,0.1938]
[1751838949211,0.02878096,2589.5,2589.3,0.1938]
[1751838955720,8.65978096,2589.6,2589.3,0.1938]
[1751838956024,0.02878096,2589.5,2589.3,0.1938]
[1751838958501,0.19816667,2589.5,2589.3,0.1938]
[1751838959117,0.02878096,2589.5,2589.3,0.1938]
[1751838959320,0.19816667,2589.5,2589.3,0.1938]
[1751838959818,0.02878096,2589.5,2589.3,0.1938]
[1751838960031,0.19816662,2589.5,2589.3,0.1938]
[1751838960643,4.05993088,2589.5,2589.3,0.1938]
[1751838960938,0.02878096,2589.5,2589.3,0.1938]
[1751838961230,0.19816652,2589.5,2589.3,0.1938]
[1751838962331,4.05999925,2589.5,2589.3,0.001]
[1751838962624,0.16938638,2589.4,2589.3,0.001]
[1751838962829,5.71201226,2589.5,2589.3,0.001]
[1751838963435,3.8618985,2589.4,2589.3,0.001]
[1751838963636,4.03128533,2589.4,2589.3,0.001]
[1751838964156,0.16938683,2589.4,2589.3,0.001]
[1751838964727,0.19815253,2589.4,2589.3,0.001]
[1751838967235,4.06005103,2589.4,2589.3,0.001]
[1751838967531,6.08098957,2589.4,2589.3,0.001]
[1751838967736,6.08095981,2589.4,2589.3,0.001]
[1751838969512,7.58665981,2589.4,2589.3,0.001]
[1751838973239,16.18065981,2589.4,2589.3,0.001]
[1751838973432,16.15187885,2589.4,2589.3,0.001]
[1751838976927,15.98253704,2589.4,2589.3,0.001]
[1751838977238,16.15160064,2589.4,2589.3,0.001]
[1751838977560,16.15159278,2589.4,2589.3,0.001]
[1751838981028,0.16905574,2589.4,2589.3,0.001]
[1751838981228,0.36185574,2589.4,2589.3,0.001]
[1751838981434,8.74805574,2589.4,2589.3,0.001]
[1751838982129,0.16905574,2589.4,2589.3,4.05584765]
[1751838982472,0.002,2589.5,2589.4,3.8618985]
[1751838983572,0.002,2589.5,2589.3,4.05576501]
[1751838984245,0.002,2589.5,2589.4,3.8618985]
[1751838985059,0.002,2589.5,2589.4,4.0546985]
[1751838985373,0.002,2589.5,2589.4,0.1928]
[1751838987280,0.002,2589.5,2589.4,4.0546985]
[1751838987634,0.002,2589.5,2589.4,0.1928]
[1751838988264,0.002,2589.5,2589.4,4.0546985]
[1751838992575,0.002,2589.5,2589.4,0.1928]
[1751838992949,0.002,2589.5,2589.4,4.0546985]
[1751838995675,0.002,2589.5,2589.4,0.1928]
[1751839007691,0.002,2589.5,2589.4,4.0546985]
[1751839011313,0.002,2589.5,2589.4,0.1928]
[1751839012644,0.002,2589.5,2589.4,4.0546985]
[1751839014703,0.002,2589.5,2589.4,4.0556985]
[1751839023056,0.1928,2590.3,2589.9,3.86106383]
[1751839023242,1.5749767,2590.5,2589.9,3.86106383]
[1751839023243,0.0044767,2590.5,2590.4,3.86040765]
[1751839023431,0.0044767,2590.5,2590.4,4.05320765]
[1751839023633,0.0044767,2590.5,2590.4,4.09181172]
[1751839024523,0.0044767,2590.5,2590.4,14.50601172]
[1751839024730,0.0044767,2590.5,2590.4,14.46740765]
[1751839028640,0.0044767,2590.5,2590.4,22.95840765]
[1751839030539,1e-08,2590.5,2590.4,23.50840765]
[1751839030734,0.0428676,2591.0,2590.4,23.50840765]
[1751839030735,0.0428676,2591.0,2590.9,4.27386266]
[1751839030936,0.0428676,2591.0,2590.9,4.31245928]
[1751839031266,0.0428676,2591.0,2590.9,4.50525928]
[1751839033836,0.0428676,2591.0,2590.9,0.1928]
[1751839034266,0.0428676,2591.0,2590.4,3.86032581]
[1751839034267,5.4796813,2591.0,2590.4,3.86032581]
[1751839034470,3.88856845,2590.9,2590.6,0.1928]
[1751839034862,3.85984833,2590.8,2590.6,0.1928]
[1751839035042,3.85996062,2590.7,2590.6,0.1928]
[1751839035244,5.43726062,2590.7,2590.6,0.1928]
[1751839035667,1.5773,2590.7,2590.6,0.1928]
[1751839036443,5.43726062,2590.7,2590.6,0.1928]
[1751839039165,1.5773,2590.7,2590.6,0.1928]
[1751839041358,5.41238565,2590.9,2590.6,0.1928]
[1751839041565,1.5527,2590.9,2590.6,4.05284131]
[1751839041749,1.5527,2590.9,2590.6,0.1928]
[1751839042261,5.41241832,2590.9,2590.6,0.1928]
[1751839042658,1.5527,2590.9,2590.6,0.1928]
[1751839043481,5.41236548,2590.9,2590.6,0.1928]
[1751839043973,1.5527,2590.9,2590.6,0.1928]
[1751839044176,3.85996062,2590.7,2590.6,0.1928]
[1751839044961,3.88867392,2590.8,2590.6,0.1928]
[1751839048180,5.42526062,2590.7,2590.6,0.1928]